[Event "Early-Titled-Tuesday-Blitz-October-24-2023"]
[Site "Chess.com"]
[Date "2023.10.24"]
[Round "5"]
[White "gpsji27"]
[Black "Ducke13"]
[Result "1/2-1/2"]
[WhiteElo "2287"]
[BlackElo "2449"]
[TimeControl "180+1"]
[EndTime "8:54:59 PDT"]
[Termination "Game drawn by repetition"]

1. d4 {[%clk 0:03:00.9]} 1... Nf6 {[%clk 0:02:59.6]} 2. Nf3 {[%clk 0:02:59.6]}
2... g6 {[%clk 0:03:00]} 3. Nc3 {[%clk 0:02:59.5]} 3... d5 {[%clk 0:02:56.4]} 4.
Bf4 {[%clk 0:02:58.6]} 4... c6 {[%clk 0:02:54.7]} 5. e3 {[%clk 0:02:58.4]} 5...
Nh5 {[%clk 0:02:45.8]} 6. Be5 {[%clk 0:02:54.5]} 6... f6 {[%clk 0:02:45.1]} 7.
Bg3 {[%clk 0:02:54.4]} 7... Nd7 {[%clk 0:02:41.9]} 8. Bd3 {[%clk 0:02:52.7]}
8... Bg7 {[%clk 0:02:37]} 9. Qe2 {[%clk 0:02:39.9]} 9... b5 {[%clk 0:02:09.7]}
10. a3 {[%clk 0:02:32.5]} 10... a5 {[%clk 0:02:09.1]} 11. e4 {[%clk 0:02:31.5]}
11... Bb7 {[%clk 0:01:47.8]} 12. exd5 {[%clk 0:02:29.2]} 12... b4 {[%clk
0:01:48.5]} 13. dxc6 {[%clk 0:02:23.6]} 13... Bxc6 {[%clk 0:01:48.7]} 14. axb4
{[%clk 0:02:20.1]} 14... axb4 {[%clk 0:01:47.5]} 15. Rxa8 {[%clk 0:02:20.5]}
15... Qxa8 {[%clk 0:01:46.2]} 16. Nd1 {[%clk 0:02:19.8]} 16... Nxg3 {[%clk
0:01:24.4]} 17. hxg3 {[%clk 0:02:17.9]} 17... Kf7 {[%clk 0:00:50.4]} 18. O-O
{[%clk 0:02:09.2]} 18... Re8 {[%clk 0:00:45.3]} 19. Bc4+ {[%clk 0:02:05.1]}
19... Bd5 {[%clk 0:00:44.8]} 20. Ne3 {[%clk 0:02:03.6]} 20... Bxc4 {[%clk
0:00:36.1]} 21. Qxc4+ {[%clk 0:02:04.5]} 21... e6 {[%clk 0:00:36.4]} 22. Qxb4
{[%clk 0:02:03]} 22... Rb8 {[%clk 0:00:33.3]} 23. Qd6 {[%clk 0:02:01.7]} 23...
Qb7 {[%clk 0:00:30.5]} 24. b3 {[%clk 0:01:59.1]} 24... Bf8 {[%clk 0:00:31]} 25.
Qf4 {[%clk 0:01:53.6]} 25... Kg7 {[%clk 0:00:23.2]} 26. Nc4 {[%clk 0:01:50.5]}
26... Qd5 {[%clk 0:00:19.2]} 27. Re1 {[%clk 0:01:45.5]} 27... Rc8 {[%clk
0:00:18.5]} 28. Qe3 {[%clk 0:01:39.6]} 28... Kf7 {[%clk 0:00:17.8]} 29. g4
{[%clk 0:01:33.6]} 29... Rc6 {[%clk 0:00:17.8]} 30. g5 {[%clk 0:01:33.6]} 30...
Bg7 {[%clk 0:00:15.4]} 31. gxf6 {[%clk 0:01:33.4]} 31... Bxf6 {[%clk 0:00:16.3]}
32. Nfe5+ {[%clk 0:01:32.7]} 32... Nxe5 {[%clk 0:00:16.4]} 33. dxe5 {[%clk
0:01:33.6]} 33... Bg7 {[%clk 0:00:14.6]} 34. Qf4+ {[%clk 0:01:33.8]} 34... Kg8
{[%clk 0:00:14.4]} 35. Nd6 {[%clk 0:01:33.7]} 35... Rc7 {[%clk 0:00:13.2]} 36.
c4 {[%clk 0:01:30.1]} 36... Qa5 {[%clk 0:00:11.5]} 37. Rd1 {[%clk 0:01:28.7]}
37... Rd7 {[%clk 0:00:09]} 38. Qe4 {[%clk 0:00:59.3]} 38... Bxe5 {[%clk
0:00:07.8]} 39. f4 {[%clk 0:00:42.3]} 39... Rxd6 {[%clk 0:00:03.3]} 40. Rxd6
{[%clk 0:00:41]} 40... Bxd6 {[%clk 0:00:03.5]} 41. Qxe6+ {[%clk 0:00:41.3]}
41... Kg7 {[%clk 0:00:03.7]} 42. Qxd6 {[%clk 0:00:41.6]} 42... Qe1+ {[%clk
0:00:04]} 43. Kh2 {[%clk 0:00:40.7]} 43... Qh4+ {[%clk 0:00:04.5]} 44. Kg1
{[%clk 0:00:41.2]} 44... Qe1+ {[%clk 0:00:05.2]} 45. Kh2 {[%clk 0:00:41.8]}
45... Qh4+ {[%clk 0:00:05.3]} 46. Kg1 {[%clk 0:00:42.7]} 46... Qe1+ {[%clk
0:00:04.8]} 1/2-1/2

[Event "Early-Titled-Tuesday-Blitz-October-24-2023"]
[Site "Chess.com"]
[Date "2023.10.24"]
[Round "5"]
[White "Hasangatin_Ramil"]
[Black "GMWSO"]
[Result "0-1"]
[WhiteElo "2723"]
[BlackElo "3068"]
[TimeControl "180+1"]
[EndTime "8:55:00 PDT"]
[Termination "GMWSO won on time"]

1. e4 {[%clk 0:03:00.9]} 1... c6 {[%clk 0:02:57.6]} 2. d4 {[%clk 0:03:00]} 2...
d5 {[%clk 0:02:58.5]} 3. Nd2 {[%clk 0:03:00.1]} 3... dxe4 {[%clk 0:02:57.8]} 4.
Nxe4 {[%clk 0:03:01]} 4... Nf6 {[%clk 0:02:57]} 5. Nxf6+ {[%clk 0:02:57.5]} 5...
exf6 {[%clk 0:02:57.9]} 6. Nf3 {[%clk 0:02:55.2]} 6... Bd6 {[%clk 0:02:55.6]} 7.
Bd3 {[%clk 0:02:55.2]} 7... O-O {[%clk 0:02:54.4]} 8. O-O {[%clk 0:02:54.8]}
8... Re8 {[%clk 0:02:43.9]} 9. c3 {[%clk 0:02:53.4]} 9... Bg4 {[%clk 0:02:38.4]}
10. h3 {[%clk 0:02:52.8]} 10... Bh5 {[%clk 0:02:38.4]} 11. Bf5 {[%clk
0:02:52.2]} 11... Nd7 {[%clk 0:02:28.9]} 12. Bg4 {[%clk 0:02:50.2]} 12... Bxg4
{[%clk 0:02:21.3]} 13. hxg4 {[%clk 0:02:49.8]} 13... Qc7 {[%clk 0:02:16.9]} 14.
Re1 {[%clk 0:02:42]} 14... Nf8 {[%clk 0:02:10.3]} 15. Bd2 {[%clk 0:02:20.1]}
15... Qd7 {[%clk 0:01:53.8]} 16. Nh4 {[%clk 0:02:10.8]} 16... Rxe1+ {[%clk
0:01:51.7]} 17. Bxe1 {[%clk 0:02:11.7]} 17... Re8 {[%clk 0:01:51.1]} 18. Nf5
{[%clk 0:01:56.4]} 18... Bb8 {[%clk 0:01:44.7]} 19. Qf3 {[%clk 0:01:55.4]} 19...
g6 {[%clk 0:01:40.1]} 20. Ng3 {[%clk 0:01:37]} 20... Bxg3 {[%clk 0:01:33.4]} 21.
Qxg3 {[%clk 0:01:36.6]} 21... Re2 {[%clk 0:01:32.1]} 22. b3 {[%clk 0:01:26.6]}
22... Qe7 {[%clk 0:01:30.2]} 23. Kf1 {[%clk 0:01:26]} 23... Qe4 {[%clk
0:01:18.6]} 24. Qf3 {[%clk 0:01:01.3]} 24... Qxf3 {[%clk 0:01:18.4]} 25. gxf3
{[%clk 0:01:02.2]} 25... Rc2 {[%clk 0:01:17.2]} 26. c4 {[%clk 0:01:02.1]} 26...
Ne6 {[%clk 0:01:12.6]} 27. d5 {[%clk 0:00:59.3]} 27... cxd5 {[%clk 0:01:13.5]}
28. cxd5 {[%clk 0:01:00]} 28... Nf4 {[%clk 0:01:08.9]} 29. Rd1 {[%clk 0:00:57]}
29... Kf8 {[%clk 0:01:07.8]} 30. Bb4+ {[%clk 0:00:51.1]} 30... Ke8 {[%clk
0:01:06.5]} 31. Re1+ {[%clk 0:00:51.2]} 31... Kd8 {[%clk 0:01:07.2]} 32. Be7+
{[%clk 0:00:48.5]} 32... Kd7 {[%clk 0:01:06.9]} 33. d6 {[%clk 0:00:38.9]} 33...
Nd5 {[%clk 0:01:00.3]} 34. a4 {[%clk 0:00:18.1]} 34... Rc3 {[%clk 0:01:00.4]}
35. Bf8 {[%clk 0:00:11.6]} 35... Rxf3 {[%clk 0:00:57.3]} 36. Rd1 {[%clk
0:00:11]} 36... Ne3+ {[%clk 0:00:49.3]} 37. Ke2 {[%clk 0:00:11.1]} 37... Nxd1
{[%clk 0:00:49.8]} 38. Kxf3 {[%clk 0:00:12]} 38... Nc3 {[%clk 0:00:50.1]} 39.
Ke3 {[%clk 0:00:10]} 39... Nd5+ {[%clk 0:00:44.3]} 40. Kd4 {[%clk 0:00:10]}
40... Nf4 {[%clk 0:00:43.2]} 41. Bh6 {[%clk 0:00:06.1]} 41... Nh3 {[%clk
0:00:37.7]} 42. f3 {[%clk 0:00:03.5]} 42... Kxd6 {[%clk 0:00:37.7]} 43. Bg7
{[%clk 0:00:03.2]} 43... Ng5 {[%clk 0:00:33.6]} 0-1

[Event "Early-Titled-Tuesday-Blitz-October-24-2023"]
[Site "Chess.com"]
[Date "2023.10.24"]
[Round "5"]
[White "DTChess"]
[Black "the_chess_child"]
[Result "0-1"]
[WhiteElo "2683"]
[BlackElo "2948"]
[TimeControl "180+1"]
[EndTime "8:55:01 PDT"]
[Termination "the_chess_child won on time"]

1. e4 {[%clk 0:03:00.9]} 1... c5 {[%clk 0:02:58.1]} 2. Nf3 {[%clk 0:03:00.9]}
2... e6 {[%clk 0:02:58.7]} 3. Nc3 {[%clk 0:03:00.3]} 3... Nc6 {[%clk 0:02:57.9]}
4. g3 {[%clk 0:03:00]} 4... d5 {[%clk 0:02:56]} 5. exd5 {[%clk 0:03:00.2]} 5...
exd5 {[%clk 0:02:56.9]} 6. Bg2 {[%clk 0:03:00.8]} 6... d4 {[%clk 0:02:56.7]} 7.
Ne2 {[%clk 0:03:00.7]} 7... Nf6 {[%clk 0:02:56.1]} 8. d3 {[%clk 0:03:00.5]} 8...
Be7 {[%clk 0:02:55.7]} 9. O-O {[%clk 0:03:00.7]} 9... O-O {[%clk 0:02:55.7]} 10.
a3 {[%clk 0:03:00.9]} 10... Bf5 {[%clk 0:02:53.8]} 11. h3 {[%clk 0:02:57.9]}
11... h6 {[%clk 0:02:51.6]} 12. Bd2 {[%clk 0:02:54.5]} 12... a5 {[%clk
0:02:49.1]} 13. Re1 {[%clk 0:02:53]} 13... a4 {[%clk 0:02:48]} 14. g4 {[%clk
0:02:47.6]} 14... Bh7 {[%clk 0:02:47.5]} 15. Ng3 {[%clk 0:02:48.1]} 15... Re8
{[%clk 0:02:45.7]} 16. g5 {[%clk 0:02:23.2]} 16... hxg5 {[%clk 0:02:44.5]} 17.
Nxg5 {[%clk 0:02:23.2]} 17... Bg6 {[%clk 0:02:44.4]} 18. Qf3 {[%clk 0:02:05.6]}
18... Nd7 {[%clk 0:02:24.1]} 19. h4 {[%clk 0:01:50.1]} 19... Nde5 {[%clk
0:02:17.4]} 20. Qd5 {[%clk 0:01:44.5]} 20... Qxd5 {[%clk 0:02:14.8]} 21. Bxd5
{[%clk 0:01:43.4]} 21... Rad8 {[%clk 0:02:14.6]} 22. Bxc6 {[%clk 0:01:28.6]}
22... Nxc6 {[%clk 0:02:09.3]} 23. h5 {[%clk 0:01:28.8]} 23... Bh7 {[%clk
0:02:03.1]} 24. Nxh7 {[%clk 0:01:28.1]} 24... Kxh7 {[%clk 0:02:04]} 25. Nf5
{[%clk 0:01:26.4]} 25... Bf6 {[%clk 0:02:03.1]} 26. Kg2 {[%clk 0:01:17.1]} 26...
Rxe1 {[%clk 0:01:51.1]} 27. Rxe1 {[%clk 0:01:15.4]} 27... Rd5 {[%clk 0:01:51.8]}
28. Ng3 {[%clk 0:01:08.5]} 28... b5 {[%clk 0:01:51.6]} 29. Re8 {[%clk 0:01:05]}
29... c4 {[%clk 0:01:25.7]} 30. Kf3 {[%clk 0:00:51.5]} 30... c3 {[%clk 0:01:20]}
31. Bc1 {[%clk 0:00:42.3]} 31... Bg5 {[%clk 0:00:56.9]} 32. Bxg5 {[%clk
0:00:37.9]} 32... Re5 {[%clk 0:00:45.2]} 33. Rc8 {[%clk 0:00:19.4]} 33... cxb2
{[%clk 0:00:44]} 34. Rxc6 {[%clk 0:00:11]} 34... b1=Q {[%clk 0:00:43.7]} 35. Bf4
{[%clk 0:00:11]} 35... Qd1+ {[%clk 0:00:39.1]} 36. Kg2 {[%clk 0:00:10.7]} 36...
Re1 {[%clk 0:00:39]} 37. h6 {[%clk 0:00:07.9]} 37... Qg4 {[%clk 0:00:27.7]} 38.
hxg7 {[%clk 0:00:04]} 38... Qxf4 {[%clk 0:00:26.9]} 0-1

[Event "Early-Titled-Tuesday-Blitz-October-24-2023"]
[Site "Chess.com"]
[Date "2023.10.24"]
[Round "5"]
[White "HanSchut"]
[Black "chess123456s"]
[Result "0-1"]
[WhiteElo "2286"]
[BlackElo "2534"]
[TimeControl "180+1"]
[EndTime "8:55:02 PDT"]
[Termination "chess123456s won on time"]

1. e4 {[%clk 0:02:59.4]} 1... e5 {[%clk 0:02:58.9]} 2. Nf3 {[%clk 0:02:57.3]}
2... Nc6 {[%clk 0:02:59.4]} 3. Bc4 {[%clk 0:02:57.9]} 3... Nf6 {[%clk 0:02:59]}
4. d4 {[%clk 0:02:57.5]} 4... exd4 {[%clk 0:02:59]} 5. e5 {[%clk 0:02:58.2]}
5... d5 {[%clk 0:02:59.1]} 6. Bb5 {[%clk 0:02:58.7]} 6... Ne4 {[%clk 0:02:59.7]}
7. Nxd4 {[%clk 0:02:58.1]} 7... Bc5 {[%clk 0:02:58.9]} 8. Be3 {[%clk 0:02:57.5]}
8... O-O {[%clk 0:02:56.2]} 9. Nxc6 {[%clk 0:02:57.3]} 9... bxc6 {[%clk
0:02:55.8]} 10. Bxc5 {[%clk 0:02:58.2]} 10... Nxc5 {[%clk 0:02:54.9]} 11. Bxc6
{[%clk 0:02:58.9]} 11... Rb8 {[%clk 0:02:55.1]} 12. Qxd5 {[%clk 0:02:58.8]}
12... Qe7 {[%clk 0:02:55.7]} 13. O-O {[%clk 0:02:58.2]} 13... Rxb2 {[%clk
0:02:54.9]} 14. Nc3 {[%clk 0:02:57]} 14... Rxc2 {[%clk 0:02:54.7]} 15. Qd4
{[%clk 0:02:53.1]} 15... Ne6 {[%clk 0:02:54.4]} 16. Qd3 {[%clk 0:02:45.1]} 16...
Rb2 {[%clk 0:02:54.2]} 17. Nd5 {[%clk 0:02:38.3]} 17... Qc5 {[%clk 0:02:53.9]}
18. Rac1 {[%clk 0:02:35.5]} 18... Qd4 {[%clk 0:02:50.2]} 19. Qg3 {[%clk
0:01:38.7]} 19... Ba6 {[%clk 0:02:15.7]} 20. Rfd1 {[%clk 0:01:22.4]} 20... Rd2
{[%clk 0:02:15]} 21. Re1 {[%clk 0:01:03.8]} 21... Qd3 {[%clk 0:01:47]} 22. h4
{[%clk 0:00:44.2]} 22... Qxg3 {[%clk 0:01:44.2]} 23. fxg3 {[%clk 0:00:43.7]}
23... Rd8 {[%clk 0:01:44.5]} 24. Nf4 {[%clk 0:00:35.9]} 24... Rxa2 {[%clk
0:01:39.8]} 25. Red1 {[%clk 0:00:24.1]} 25... Rxd1+ {[%clk 0:01:20.1]} 26. Rxd1
{[%clk 0:00:25]} 26... Bc4 {[%clk 0:00:35.1]} 27. Rd7 {[%clk 0:00:16.9]} 27...
g6 {[%clk 0:00:27.1]} 28. Nxe6 {[%clk 0:00:15.5]} 28... Bxe6 {[%clk 0:00:27.4]}
29. Rxc7 {[%clk 0:00:16.4]} 29... Rc2 {[%clk 0:00:27.2]} 30. Kh2 {[%clk
0:00:08.3]} 30... Kg7 {[%clk 0:00:25]} 31. g4 {[%clk 0:00:08.2]} 31... Bd5
{[%clk 0:00:24.6]} 32. Bxd5 {[%clk 0:00:04.4]} 32... Rxc7 {[%clk 0:00:24.2]} 33.
e6 {[%clk 0:00:05.3]} 33... fxe6 {[%clk 0:00:25.1]} 34. Bxe6 {[%clk 0:00:06.2]}
34... a5 {[%clk 0:00:26]} 35. h5 {[%clk 0:00:06.1]} 35... gxh5 {[%clk
0:00:25.3]} 36. gxh5 {[%clk 0:00:07]} 36... a4 {[%clk 0:00:26.2]} 37. g4 {[%clk
0:00:07.7]} 37... a3 {[%clk 0:00:27.1]} 38. g5 {[%clk 0:00:08.3]} 38... a2
{[%clk 0:00:27]} 39. Bxa2 {[%clk 0:00:03]} 39... Rc2+ {[%clk 0:00:26.8]} 40. Kg3
{[%clk 0:00:03.9]} 40... Rxa2 {[%clk 0:00:27.7]} 0-1

[Event "Early-Titled-Tuesday-Blitz-October-24-2023"]
[Site "Chess.com"]
[Date "2023.10.24"]
[Round "5"]
[White "dosto07"]
[Black "Jojo_898"]
[Result "0-1"]
[WhiteElo "2492"]
[BlackElo "2358"]
[TimeControl "180+1"]
[EndTime "8:55:02 PDT"]
[Termination "Jojo_898 won on time"]

1. e4 {[%clk 0:03:00.9]} 1... d6 {[%clk 0:02:59.4]} 2. d4 {[%clk 0:03:00.1]}
2... Nf6 {[%clk 0:02:59.2]} 3. Nc3 {[%clk 0:02:59.6]} 3... g6 {[%clk 0:02:59.7]}
4. Nf3 {[%clk 0:02:59.7]} 4... c6 {[%clk 0:03:00.2]} 5. a4 {[%clk 0:02:58.4]}
5... Bg7 {[%clk 0:03:00.2]} 6. Be2 {[%clk 0:02:58.6]} 6... h5 {[%clk 0:02:59.4]}
7. O-O {[%clk 0:02:55.3]} 7... O-O {[%clk 0:02:57.5]} 8. Bg5 {[%clk 0:02:49.8]}
8... Nbd7 {[%clk 0:02:57.1]} 9. Qd2 {[%clk 0:02:47.9]} 9... e5 {[%clk
0:02:56.6]} 10. Rad1 {[%clk 0:02:36.5]} 10... Qb6 {[%clk 0:02:50.5]} 11. b3
{[%clk 0:02:29.1]} 11... Re8 {[%clk 0:02:47.4]} 12. d5 {[%clk 0:02:17.7]} 12...
cxd5 {[%clk 0:02:36.3]} 13. Nxd5 {[%clk 0:02:12.5]} 13... Nxd5 {[%clk
0:02:35.5]} 14. Qxd5 {[%clk 0:02:12.5]} 14... Nc5 {[%clk 0:02:23.9]} 15. Be3
{[%clk 0:01:43.9]} 15... Be6 {[%clk 0:02:20.1]} 16. Bxc5 {[%clk 0:01:33.6]}
16... dxc5 {[%clk 0:02:16.6]} 17. Qd6 {[%clk 0:01:30]} 17... Qb4 {[%clk
0:02:10]} 18. Qd3 {[%clk 0:00:59.4]} 18... Rac8 {[%clk 0:02:08.4]} 19. Nd2
{[%clk 0:00:58.6]} 19... Red8 {[%clk 0:02:00.9]} 20. Qe3 {[%clk 0:00:57.6]}
20... a6 {[%clk 0:01:43]} 21. Nc4 {[%clk 0:00:54.8]} 21... b5 {[%clk 0:01:39.5]}
22. axb5 {[%clk 0:00:54.6]} 22... axb5 {[%clk 0:01:38.4]} 23. Nd6 {[%clk
0:00:46.5]} 23... Rb8 {[%clk 0:01:38]} 24. c3 {[%clk 0:00:35.5]} 24... Qxb3
{[%clk 0:01:18.8]} 25. Rb1 {[%clk 0:00:35.5]} 25... Qa2 {[%clk 0:01:15.1]} 26.
Nxb5 {[%clk 0:00:29]} 26... Rd2 {[%clk 0:01:05.2]} 27. Rfe1 {[%clk 0:00:20.3]}
27... Bd7 {[%clk 0:00:37.3]} 28. Ra1 {[%clk 0:00:18.5]} 28... Rxe2 {[%clk
0:00:35.2]} 29. Qxe2 {[%clk 0:00:12.9]} 29... Qxe2 {[%clk 0:00:34.2]} 30. Rxe2
{[%clk 0:00:12.6]} 30... Rxb5 {[%clk 0:00:34.9]} 31. h3 {[%clk 0:00:10]} 31...
c4 {[%clk 0:00:34]} 32. Ra8+ {[%clk 0:00:08.6]} 32... Kh7 {[%clk 0:00:33.1]} 33.
Ra7 {[%clk 0:00:09.1]} 33... Be6 {[%clk 0:00:33.2]} 34. Rc2 {[%clk 0:00:07.9]}
34... Rb1+ {[%clk 0:00:32.4]} 35. Kh2 {[%clk 0:00:07.4]} 35... Re1 {[%clk
0:00:33]} 36. f3 {[%clk 0:00:07]} 36... Bh6 {[%clk 0:00:33.1]} 37. g3 {[%clk
0:00:04.5]} 37... Re3 {[%clk 0:00:32.5]} 38. Kg2 {[%clk 0:00:04.4]} 38... Rd3
{[%clk 0:00:32.4]} 39. Rc7 {[%clk 0:00:03.8]} 39... Bd2 {[%clk 0:00:31.4]} 40.
Kf2 {[%clk 0:00:02.4]} 40... Bxc3 {[%clk 0:00:30.3]} 41. Ke2 {[%clk 0:00:02.6]}
41... Bd4 {[%clk 0:00:30.5]} 42. Rc6 {[%clk 0:00:01.4]} 42... Re3+ {[%clk
0:00:30.7]} 43. Kd2 {[%clk 0:00:01.3]} 43... Rxf3 {[%clk 0:00:31.1]} 0-1

[Event "Early-Titled-Tuesday-Blitz-October-24-2023"]
[Site "Chess.com"]
[Date "2023.10.24"]
[Round "5"]
[White "venturov"]
[Black "Buzhizhebuguai"]
[Result "1-0"]
[WhiteElo "2492"]
[BlackElo "2614"]
[TimeControl "180+1"]
[EndTime "8:55:03 PDT"]
[Termination "venturov won by resignation"]

1. e4 {[%clk 0:03:00.4]} 1... c5 {[%clk 0:02:58.5]} 2. Nf3 {[%clk 0:02:59.7]}
2... Nc6 {[%clk 0:02:58.7]} 3. Bc4 {[%clk 0:02:57.8]} 3... d6 {[%clk 0:02:53.6]}
4. O-O {[%clk 0:02:55]} 4... Nf6 {[%clk 0:02:53.5]} 5. Re1 {[%clk 0:02:54.9]}
5... e6 {[%clk 0:02:52.7]} 6. d3 {[%clk 0:02:47]} 6... Be7 {[%clk 0:02:52.3]} 7.
c3 {[%clk 0:02:47.3]} 7... a6 {[%clk 0:02:52.3]} 8. Bb3 {[%clk 0:02:42.6]} 8...
O-O {[%clk 0:02:48.8]} 9. d4 {[%clk 0:02:43.1]} 9... b5 {[%clk 0:02:45.7]} 10.
Qe2 {[%clk 0:02:42.7]} 10... Bb7 {[%clk 0:02:45]} 11. Nbd2 {[%clk 0:02:36.8]}
11... cxd4 {[%clk 0:02:33.9]} 12. cxd4 {[%clk 0:02:37.7]} 12... Re8 {[%clk
0:02:34.3]} 13. e5 {[%clk 0:02:26.2]} 13... dxe5 {[%clk 0:02:27.5]} 14. dxe5
{[%clk 0:02:27.1]} 14... Nd5 {[%clk 0:02:27.3]} 15. Ne4 {[%clk 0:02:22.7]} 15...
Ndb4 {[%clk 0:02:24.6]} 16. Rd1 {[%clk 0:02:18.4]} 16... Qc7 {[%clk 0:02:11.6]}
17. Bf4 {[%clk 0:02:17.4]} 17... Rad8 {[%clk 0:02:09]} 18. Nd6 {[%clk
0:02:06.7]} 18... Rf8 {[%clk 0:02:04.8]} 19. Rac1 {[%clk 0:02:01.8]} 19... Bxd6
{[%clk 0:01:53.7]} 20. exd6 {[%clk 0:02:01.5]} 20... Qd7 {[%clk 0:01:54.6]} 21.
a3 {[%clk 0:01:25.4]} 21... Nd5 {[%clk 0:01:54.4]} 22. Bxd5 {[%clk 0:01:26]}
22... exd5 {[%clk 0:01:54.3]} 23. Rxd5 {[%clk 0:01:26.6]} 23... Rfe8 {[%clk
0:01:53.5]} 24. Qd1 {[%clk 0:00:46.2]} 24... Qg4 {[%clk 0:01:52.6]} 25. Bg3
{[%clk 0:00:42.1]} 25... h6 {[%clk 0:01:46.9]} 26. h3 {[%clk 0:00:40.3]} 26...
Qg6 {[%clk 0:01:45.8]} 27. Rd2 {[%clk 0:00:39.2]} 27... Rd7 {[%clk 0:01:38.4]}
28. Re2 {[%clk 0:00:30.2]} 28... Red8 {[%clk 0:01:34.5]} 29. Qe1 {[%clk
0:00:30]} 29... Qf5 {[%clk 0:01:24.5]} 30. Rec2 {[%clk 0:00:22.4]} 30... Na5
{[%clk 0:01:12.8]} 31. Qxa5 {[%clk 0:00:20.7]} 31... Bxf3 {[%clk 0:01:13]} 32.
gxf3 {[%clk 0:00:21.6]} 32... Qxf3 {[%clk 0:01:13.9]} 33. Qc3 {[%clk 0:00:14.7]}
33... Qf5 {[%clk 0:01:12.3]} 34. Rd2 {[%clk 0:00:14.7]} 34... Qxh3 {[%clk
0:01:11.8]} 35. Re1 {[%clk 0:00:12.7]} 35... Qg4 {[%clk 0:01:10.8]} 36. Qd4
{[%clk 0:00:10.7]} 36... Qg6 {[%clk 0:01:09.3]} 37. Qe4 {[%clk 0:00:07.8]} 37...
Qg5 {[%clk 0:01:06.7]} 38. Qf4 {[%clk 0:00:07.6]} 38... Qg6 {[%clk 0:01:06.9]}
39. Kf1 {[%clk 0:00:04.6]} 39... h5 {[%clk 0:01:06.5]} 40. Re7 {[%clk
0:00:04.1]} 40... Kh7 {[%clk 0:01:05]} 41. Rxd7 {[%clk 0:00:04.4]} 41... Rxd7
{[%clk 0:01:05]} 42. Re2 {[%clk 0:00:04.4]} 42... Rd8 {[%clk 0:01:02.8]} 43. Qe4
{[%clk 0:00:04.5]} 43... f5 {[%clk 0:01:02.8]} 44. Qf4 {[%clk 0:00:04.6]} 44...
Rc8 {[%clk 0:00:59.5]} 45. Kg2 {[%clk 0:00:04.9]} 45... Rc4 {[%clk 0:00:58.4]}
46. Qe5 {[%clk 0:00:02.1]} 46... h4 {[%clk 0:00:56.8]} 47. d7 {[%clk 0:00:02.3]}
47... hxg3 {[%clk 0:00:56.9]} 48. d8=Q {[%clk 0:00:02.4]} 48... gxf2+ {[%clk
0:00:57.3]} 49. Kxf2 {[%clk 0:00:03.1]} 49... Rg4 {[%clk 0:00:56.8]} 50. Qh2+
{[%clk 0:00:02.4]} 1-0

[Event "Early-Titled-Tuesday-Blitz-October-24-2023"]
[Site "Chess.com"]
[Date "2023.10.24"]
[Round "5"]
[White "slorovel"]
[Black "McCarthyStone"]
[Result "1-0"]
[WhiteElo "2465"]
[BlackElo "2317"]
[TimeControl "180+1"]
[EndTime "8:55:03 PDT"]
[Termination "slorovel won by checkmate"]

1. e4 {[%clk 0:03:00.9]} 1... e5 {[%clk 0:02:58.5]} 2. Nf3 {[%clk 0:02:56.3]}
2... d6 {[%clk 0:02:59]} 3. d4 {[%clk 0:02:55.5]} 3... exd4 {[%clk 0:02:59.9]}
4. Nxd4 {[%clk 0:02:55.9]} 4... Nf6 {[%clk 0:03:00.3]} 5. Nc3 {[%clk 0:02:55.4]}
5... g6 {[%clk 0:03:00.7]} 6. Be2 {[%clk 0:02:55.3]} 6... Bg7 {[%clk 0:03:01]}
7. O-O {[%clk 0:02:55.7]} 7... O-O {[%clk 0:03:01.4]} 8. Be3 {[%clk 0:02:55.5]}
8... Re8 {[%clk 0:03:01.7]} 9. f3 {[%clk 0:02:55.8]} 9... d5 {[%clk 0:03:02.2]}
10. Bg5 {[%clk 0:02:50]} 10... h6 {[%clk 0:03:00.6]} 11. Bxf6 {[%clk 0:02:49]}
11... Qxf6 {[%clk 0:02:59.9]} 12. Nb3 {[%clk 0:02:42.8]} 12... dxe4 {[%clk
0:02:57.5]} 13. fxe4 {[%clk 0:02:41.7]} 13... Qb6+ {[%clk 0:02:52.5]} 14. Kh1
{[%clk 0:02:41.8]} 14... c6 {[%clk 0:02:52.8]} 15. Bc4 {[%clk 0:02:38.6]} 15...
Be6 {[%clk 0:02:49.2]} 16. Bxe6 {[%clk 0:02:38.4]} 16... Rxe6 {[%clk 0:02:50.1]}
17. Qf3 {[%clk 0:02:33.1]} 17... Re7 {[%clk 0:02:34.1]} 18. Rad1 {[%clk
0:02:25.8]} 18... Nd7 {[%clk 0:02:31.9]} 19. a3 {[%clk 0:01:56.4]} 19... Rae8
{[%clk 0:02:31.7]} 20. Rd6 {[%clk 0:01:28.9]} 20... Ne5 {[%clk 0:02:28.1]} 21.
Qe2 {[%clk 0:01:29]} 21... Qc7 {[%clk 0:02:17.7]} 22. Rfd1 {[%clk 0:01:27.7]}
22... h5 {[%clk 0:01:57.1]} 23. a4 {[%clk 0:01:17.4]} 23... Ng4 {[%clk
0:01:55.5]} 24. g3 {[%clk 0:01:09.8]} 24... Bxc3 {[%clk 0:01:21.7]} 25. bxc3
{[%clk 0:01:08.1]} 25... Qb6 {[%clk 0:01:22.3]} 26. R6d4 {[%clk 0:00:56.2]}
26... Rxe4 {[%clk 0:01:19]} 27. Qf3 {[%clk 0:00:49.9]} 27... Re3 {[%clk
0:00:32.5]} 28. Qf4 {[%clk 0:00:23.6]} 28... Re2 {[%clk 0:00:15.4]} 29. Rf1
{[%clk 0:00:19.2]} 29... f5 {[%clk 0:00:09.4]} 30. h3 {[%clk 0:00:14.2]} 30...
Ne3 {[%clk 0:00:04.8]} 31. Qd6 {[%clk 0:00:13.7]} 31... c5 {[%clk 0:00:04.5]}
32. Qd7 {[%clk 0:00:03.3]} 32... Nxf1 {[%clk 0:00:01.9]} 33. Rd6 {[%clk
0:00:03.2]} 33... Qa5 {[%clk 0:00:01.3]} 34. Rxg6+ {[%clk 0:00:02.7]} 34... Kh8
{[%clk 0:00:01.4]} 35. Qg7# {[%clk 0:00:03.6]} 1-0